Cogmind - Beta 13 *** ADVENTURER MODE // 2024.07.30 @ 09:25:36 Player: Jefffff Result: Self-destructed Performance ------------- Evolutions (1) 500 Regions Visited (2) 400 Robots Destroyed (17) 85 Value Destroyed (377) 377 Prototype IDs (1) 20 Alien Tech Used (0) 0 Bonus (0) 0 TOTAL SCORE: 1382 Bonus ------- None Cogmind --------- Core Integrity 238/400 Matter 285/300 Energy 100/100 System Corruption 0% Temperature Cool (6) Movement Core (250) Ox4 Location -9/Materials Parts ------- > --- POWER (1) -------- (None) > --- PROPULSION (4) --- (None) > --- UTILITY (2) ------ Medium Storage Unit > --- WEAPON (2) ------- Heavy Assault Rifle > --- INVENTORY (10) --- Light Ion Engine Light Ion Engine High-capacity Storage Unit Weight Redist. System Visual Processing Unit Sensor Array Signal Interpreter Transport Network Coupler Light Armor Plating Light Assault Rifle Peak State ------------ > --- POWER ------------ Heavy Ion Engine > --- PROPULSION ------- Compact Wheel Compact Wheel VTOL Module > --- UTILITY ---------- Medium Storage Unit ECM Suite > --- WEAPON ----------- Assault Rifle Light Assault Rifle > --- INVENTORY -------- Light Ion Engine Light Ion Engine High-capacity Storage Unit Weight Redist. System Visual Processing Unit Sensor Array Signal Interpreter Light Armor Plating Light Assault Rifle Light Assault Rifle [Rating: 12] Favorites ----------- Power Light Ion Engine Engine Light Ion Engine Propulsion Compact Wheel Wheel Compact Wheel Flight Unit VTOL Module Utility Medium Storage Unit Device ECM Suite Storage Medium Storage Unit Weapon Light Assault Rifle Energy Gun Beam Rifle Ballistic Gun Light Assault Rifle Build | -11 -10 -9 ------- Run | Yrd Mat Mat Slots Evolved 2 | . . 2 Power . | . . . Propulsion 2 | . . 2 Utility . | . . . Weapon . | . . . Parts Attached 14 | 6 3 5 Power 3 | 1 . 2 Engine 3 | 1 . 2 Core . | . . . Reactor . | . . . Propulsion 4 | 2 1 1 Treads . | . . . Leg . | . . . Wheel 3 | 2 1 . Hover . | . . . Flight 1 | . . 1 Utility 3 | 1 2 . Device 1 | . 1 . Storage 2 | 1 1 . Processor . | . . . Hackware . | . . . Protection . | . . . Artifact . | . . . Weapon 4 | 2 . 2 Energy Gun 1 | . . 1 Energy Cannon . | . . . Ballistic Gun 3 | 2 . 1 Ballistic Cannon . | . . . Launcher . | . . . Special Weapon . | . . . Impact Weapon . | . . . Slashing Weapon . | . . . Piercing Weapon . | . . . Special Melee Weapon . | . . . Unidentified Prototypes 1 | . . 1 Parts Lost 6 | . . 6 Power 1 | . . 1 Propulsion 2 | . . 2 Utility 1 | . . 1 Weapon 2 | . . 2 Highest Loss Streak 3 | . . 3 To Critical Strikes . | . . . Average Slot Usage (%) 79 | . 87 72 Engine 9 | . 14 5 Wheel 23 | . 28 20 Flight 4 | . . 8 Device 4 | . 1 6 Storage 12 | . 14 11 Energy Gun 1 | . . 2 Ballistic Gun 22 | . 28 17 Naked Turns . | . . . Heaviest Build 18 | 11 18 18 Greatest Support 32 | 26 32 32 Greatest Overweight (x) 4 | . . 4 Average Overweight (x) . | . . . Largest Inventory Capacity 10 | 8 10 10 Average Capacity 9 | 6 9 10 Most Carried 10 | 2 10 10 Average Carried 7 | . 5 9 Final Capacity 10 | 8 10 10 Final Carried 10 | . 10 10 Class Distribution -------------------- 100% | Mutant Dominant Class ---------------- Mutant | -10/Materials Mutant | -9/Materials Resources | -11 -10 -9 ----------- Run | Yrd Mat Mat Matter Collected 538 | 174 202 162 Remotely . | . . . Salvage Created 689 | . 241 448 Parts 39 | . 19 20 Haulers Intercepted 3 | . 2 1 Recyclers Shooed 1 | . 1 . Parts Field Recycled . | . . . Retrieved Matter . | . . . Parts Self-Destructed . | . . . Prevented . | . . . Kills | -11 -10 -9 ------- Run | Yrd Mat Mat Combat Hostiles Destroyed 11 | . 3 8 Guns 11 | . 3 8 Classes Destroyed 7 | . 5 2 Worker 1 | . 1 . Hauler 3 | . 2 1 Recycler 1 | . 1 . Watcher 1 | . 1 . Swarmer 3 | . 3 . Grunt 5 | . . 5 Sentry 3 | . . 3 Best Kill Streak 5 | . 5 3 Combat Bots Only 3 | . 3 3 Max Kills in Single Turn 1 | . 1 1 Gunslinging . | . . . Exploded . | . . . Melee . | . . . Uniques/NPCs Destroyed . | . . . Combat | -11 -10 -9 -------- Run | Yrd Mat Mat Hostile Shots Fired 96 | . 7 89 Missed 27 | . 1 26 Damage Taken 623 | . 35 588 Core 162 | . . 162 Absorbed by Shields . | . . . Ignored by Resistances 184 | . 12 172 Core Remaining (%) 100 | 100 100 . Volleys Fired 66 | . 24 42 Largest 2 | . 2 2 Hottest 79 | . 40 79 Shots Fired 125 | . 48 77 Gun 125 | . 48 77 Cannon . | . . . Launcher . | . . . Special . | . . . Kinetic 113 | . 48 65 Thermal 12 | . . 12 Explosive . | . . . Electromagnetic . | . . . Robot Hit Streak 25 | . 10 25 Robot Miss Streak 3 | . 2 3 Penetration Max . | . . . Secondary Targets 2 | . 1 1 Max Gunslinging Chain 1 | . 1 1 Shots Hit Robots 98 | . 33 65 Core Hits 32 | . 12 20 Critical Kills . | . . . Critical Parts Destroyed 1 | . 1 . Critical Strikes 3 | . 1 2 Burn 2 | . . 2 Destroy 1 | . 1 . Melee Attacks . | . . . Impact . | . . . Slashing . | . . . Piercing . | . . . Sneak Attacks . | . . . Combat Hostiles . | . . . Follow-up Attacks . | . . . Damage Inflicted 1125 | . 375 750 Guns 1120 | . 375 745 Cannons . | . . . Explosions . | . . . Melee . | . . . Ramming 5 | . . 5 Kinetic 1004 | . 375 629 Thermal 116 | . . 116 Explosive . | . . . Electromagnetic . | . . . Impact . | . . . Slashing . | . . . Piercing . | . . . Highest Corruption . | . . . Average Corruption . | . . . Corruption Purged . | . . . Corruption Blocked . | . . . Overload Shots . | . . . Overflow Damage . | . . . Projectiles . | . . . Explosions . | . . . Melee . | . . . Knockbacks . | . . . Impact . | . . . Kinetic . | . . . Secondary . | . . . Self-Inflicted Damage 2 | . . 2 Shots . | . . . Rammed 1 | . . 1 Targets Rammed 1 | . . 1 Kicked . | . . . Crushed . | . . . Highest Temperature 73 | . . 73 Average Temperature 22 | . . 22 Received Heat Transfer 306 | . . 306 Siege Activations . | . . . Robots Corrupted . | . . . Combat Hostiles . | . . . Parts Fried . | . . . Impact Corruptions . | . . . Robots Melted . | . . . Combat Hostiles . | . . . Parts Melted . | . . . Heat Transferred 444 | . . 444 Parts Sabotaged . | . . . Parts Stolen . | . . . Parts Stripped . | . . . Power Chain Reactions . | . . . Alert | -11 -10 -9 ------- Run | Yrd Mat Mat Peak Influence 264 | . 131 264 Initial 46 | . . 46 Average 112 | . 70 163 Maximum Alert Level 1 | . . 1 Low Security (%) 76 | 100 100 52 Level 1 23 | . . 47 Level 2 . | . . . Level 3 . | . . . Level 4 . | . . . Level 5 . | . . . High Security . | . . . Max Security . | . . . Squads Dispatched 2 | . . 2 Investigation 1 | . . 1 Extermination . | . . . Reinforcement 1 | . . 1 Assault . | . . . Garrison . | . . . Intercept . | . . . Searches Triggered . | . . . Construction Impeded . | . . . Haulers Reinforced . | . . . Active Scanning Responses . | . . . Cargo Convoy Interrupts . | . . . Stealth | -11 -10 -9 --------- Run | Yrd Mat Mat Distress Signals . | . . . Communications Jammed . | . . . Distress Signals . | . . . Times Spotted 22 | . 5 17 Peak Tracking Total 6 | . 3 6 Tactical Retreats 1 | . . 1 Traps | -11 -10 -9 ------- Run | Yrd Mat Mat Traps Triggered 1 | . . 1 Indirectly . | . . . Trap Hack Attempts . | . . . Triggered . | . . . Disarmed . | . . . Reprogrammed . | . . . Reused . | . . . Traps Extracted . | . . . Installed . | . . . Triggered . | . . . Machines | -11 -10 -9 ---------- Run | Yrd Mat Mat Machines Disabled . | . . . Max in Single Turn . | . . . Machines Repaired . | . . . Machines Dismantled . | . . . Machines Sabotaged . | . . . Overloaded Fab Kills . | . . . Hacking | -11 -10 -9 --------- Run | Yrd Mat Mat Machines Accessed 1 | . . 1 Terminals 1 | . . 1 Fabricators . | . . . Repair Stations . | . . . Recycling Units . | . . . Scanalyzers . | . . . Garrison Access . | . . . Total Hacks 2 | . . 2 Successful 1 | . . 1 Failed 1 | . . 1 Catastrophic . | . . . Database Lockouts . | . . . Manual 2 | . . 2 Terminals 2 | . . 2 Fabricators . | . . . Repair Stations . | . . . Recycling Units . | . . . Scanalyzers . | . . . Garrison Access . | . . . Terminal Hacks . | . . . Fabricator Hacks . | . . . Repair Station Hacks . | . . . Recycling Unit Hacks . | . . . Scanalyzer . | . . . Garrison Access Hacks . | . . . Unauthorized Hacks 1 | . . 1 Terminals 1 | . . 1 Assimilate 1 | . . 1 Fabricators . | . . . Repair Stations . | . . . Recycling Units . | . . . Scanalyzers . | . . . Garrison Access . | . . . Data Cores Recovered . | . . . Used . | . . . Hacking Detections 1 | . . 1 Full Trace Events . | . . . Feedback Events . | . . . Feedback Blocked . | . . . Robot Schematics Acquired . | . . . Robots Built . | . . . Authchips . | . . . Time . | . . . Total Robot Build Rating . | . . . Part Schematics Acquired . | . . . Parts Built . | . . . Authchips . | . . . Time . | . . . Total Part Build Rating . | . . . Parts Repaired . | . . . Time . | . . . Parts Recycled . | . . . Recycled Matter . | . . . Retrieved Matter . | . . . Retrieved Components . | . . . Parts Scanalyzed . | . . . Part Schematics Acquired . | . . . Parts Damaged . | . . . Bothacking | -11 -10 -9 ------------ Run | Yrd Mat Mat Used RIF Installer . | . . . Robots Hacked . | . . . Non-combat . | . . . Combat . | . . . Robot Hacks Applied . | . . . Relay Couplers Released . | . . . Fabnet Peak Effective % . | . . . Robots Rewired . | . . . Allies Hacked . | . . . Hacks Repelled . | . . . Allies | -11 -10 -9 -------- Run | Yrd Mat Mat Total Allies . | . . . Largest Group . | . . . Highest-Rated Group . | . . . Highest-Rated Ally . | . . . Total Orders . | . . . Ally Attacks . | . . . Total Damage . | . . . Kills . | . . . Allies Corrupted . | . . . Allies Melted . | . . . Intel | -11 -10 -9 ------- Run | Yrd Mat Mat Robot Analysis Total . | . . . Derelict Logs Recovered . | . . . Drone Launches . | . . . Drone Recoveries . | . . . Exploration | -11 -10 -9 ------------- Run | Yrd Mat Mat Turns Passed 640 | 37 286 317 Spaces Moved 414 | 31 219 164 Core 8 | 7 . 1 Treads . | . . . Legs . | . . . Wheels 406 | 24 219 163 Hover . | . . . Flight . | . . . Fastest Speed 50 | 50 90 100 Average Speed 94 | 80 92 100 Slowest Speed 250 | 90 100 250 Overloaded Moves . | . . . Propulsion Burnouts . | . . . Robots Hopped . | . . . Cave-ins Triggered . | . . . Exploration Rate (%) 20 | 5 39 18 Regions Visited 2 Branch Regions . Pre-discovered Areas . | . . . Known Exits Taken . | . . . Unknown Exits Taken 2 | 1 1 . Scrap Searched . | . . . Spaces Dug . | . . . Terrain Destroyed . | . . . Melee . | . . . Projectile . | . . . AOE . | . . . Terrain Rammed . | . . . Walls Destroyed . | . . . Machines Disabled . | . . . Actions | -11 -10 -9 --------- Run | Yrd Mat Mat Total 545 | 42 259 244 Wait 26 | . . 26 Move 412 | 30 218 164 Hop . | . . . Pick Up 18 | 6 11 1 Fast Attach 7 | . 2 5 Attach 6 | 6 . . Detach . | . . . Swap 1 | . 1 . Drop 8 | . 3 5 Fire 66 | . 24 42 Melee . | . . . Ram 1 | . . 1 Kick . | . . . Crush . | . . . Escape Stasis . | . . . Rewire . | . . . Trap . | . . . Miscellaneous . | . . . Route ------- -11/Scrapyard -10/Materials (discovered 2 exits: *Mat x2) -9/Materials (discovered 1 exit: [*Min]) History --------- Turn | Location | Event 27 | -11/Scrapyard | Discovered new exit (range 12) 38 | -11/Scrapyard | Entered Materials 160 | -10/Materials | Discovered new exit (range 8) 309 | -10/Materials | Build established: Mutant 321 | -10/Materials | Discovered new exit (range 4) 324 | -10/Materials | Entered another Materials area 324 | -9/Materials | Evolved 2 slots: Propulsion x2 547 | -9/Materials | Lost 3 parts (1p1u1w) 583 | -9/Materials | Discovered new exit (range 7) 641 | -9/Materials | Self-destructed Last Messages --------------- 00566_ Y-45 Defender destroyed. 00570_ K-01 Serf collects debris. 00571_ Acquired 6 matter. 00573_ R-06 Scavenger collects Heat Sink. 00575_ Destroyed Datajack. 00576_ R-06 Scavenger collects Lgt. Treads. 00582_ K-01 Serf cleans the Terminal. 00583_ EXIT=FOUND 00584_ K-01 Serf suffers critical hit (Burn). 00586_ K-01 Serf cleans the Terminal. 00609_ Dropped VTOL Module. 00618_ Com. Wheel destroyed. 00635_ G-47 Trooper suffers critical hit (Burn). 00635_ G-47 Trooper destroyed. 00635_ Switching to secondary target: G-34 Mercenary. 00636_ Beam Rifle destroyed. 00636_ C-30 ARC bursts open, deploying its payload. 00636_ S-10 Pest unfolds itself. Map ----- +----------------------------------------------------+ | ???????????????????# # #?????? | | ???????????????????# """ """ """ ######?????? | | ???????????????????# """ """ """ ########## | | ???????????????????# """ """ """ ! !% | | ???????????????????# ? =]]] | | ???????????????????# ? !* #### | | ???????????????????# ?####################*#???? | | ???????????????????? ????????????????????# #???? | | ???????????????????? ??????????????#######+##??? | | ???????????????????? ??????????????# """ [ #??? | | ?????????????????????????????????????# """"" #??? | | ?????????????????????????????????????# """"" #??? | | ?????????????????????????????????????# """"" #??? | | ?????????????????????????????????????# """ #??? | | ?????????????????????????????????????# #??? | | ?????????????????????????????????????# #??? | | ?????????????????????????????????????# #??? | | ?????????????????????????????????????# %%! #??? | | ?????????????????????????????????#########+####### | | ??????????????#????????????####### %=^# | | ??????????????# ???????????# """%" [!*+ | | ?????????????## ?????????# """ #= !!# " | | ???????????### s ######### """ # ####=%=# """ | | ???????????? s # # #??#! #?""" | | ???????????? T g g # # #??# #?""" | | ?????????? !s %* @ + # #??# #??"" | | ?????????????# ##### # # #??# #??"" | | ????????????????????#### ####### #??# #????? | | ????????????????????#" #????# #??# #????? | | ????????????????????#"" #???? ??# +????? | | ????????????????????#!! #???? ??# #????? | | ????????????????????#"" =< #???? ??# #????? | | ????????????????????#|| #???# #?# #????? | | ????????????????????#"" #???# #? ????? | | ????????????????????#" #???#######? ????? | | ????????????????????#### ########????? ????? | | ???????????????+########r # #????? ????? | | ?????????????# + """#????? ????? | | ?????????????# # """#?????#####????? | | ??????????+ """ """ # """#??????????????? | | ??????????### """ """ #? """#??????????????? | | ???????????????? """ """ #? #??????????????? | | ???????????????? #??#####??????????????? | | ??????????????? #?????????????????????? | | ??????????????? #?????????????????????? | | ?????????????? ########?????????????????????? | | ?????????????? ?????????????????????????????? | | ?????????????? ??????????????????????????????? | | ????????????? ? ???????????????????????????????? | | ?????????????? ??????????????????????????????????? | +----------------------------------------------------+ Best States ------------- Heat Dissipation 28 Energy Generation 10 Energy Capacity 125 Matter Stores 300 Matter Capacity 300 Sight Range 16 Terrain Scan Density 10 ECM Strength 1 Resistance: KI 20 Resistance: TH 20 Resistance: EX 20 Resistance: EM 20 Resistance: I 20 Resistance: S 20 Resistance: P 20 Evasion (%) 42 Offensive Hacking 10 Item Schematics ----------------- None Robot Schematics ------------------ None Fabricated ------------ Nothing Alien Tech Used ----------------- None Achievements -------------- None Challenges ------------ None Game ------ Seed StasisFieldTerrabomb Manual? 0 Play Time 00:08:45 Cumulative 103.2 hours Start 2024.07.30 @ 09:19:38 End 2024.07.30 @ 09:25:36 Sessions 1 Manual Loads 0 Difficulty Adventurer Special Mode None Game No. 143 Rogue 0 Adventurer 143 Explorer 0 Win Type - Total 0 Types 0/0/0/0/0/0/0/0/0 Lore% 47 Gallery% 50 Achievement% 37 Wizard Run 0 Options --------- Layout 2 ASCII 0 Keyboard 0 Movement Mouse Keybinds 0 Fullscreen 2 Font 48/Terminus Map View 50x44 Zoom Use 0% Tactical HUD 1 Map Filters NONE Filters NONE Steam 1 RUN: 88aba058-0722-4329-a094-cde3ce987143